bitfinex-derivatives/quotes_ETHF0:USTF0_20250909
["timestamp","ask_amount","ask_price","bid_price","bid_amount"]
[1757399556542,0.71022705,4351.8,4351.7,0.7336]
[1757399556738,0.234,4351.9,4351.7,0.7336]
[1757399557048,0.435,4351.9,4351.8,0.7336]
[1757399557235,0.94414913,4351.9,4351.8,0.7336]
[1757399558439,1.14114913,4351.9,4351.8,0.7336]
[1757399559235,0.90714913,4351.9,4351.8,0.7336]
[1757399559636,1.13164913,4351.9,4351.8,0.7336]
[1757399560439,1.13164913,4351.9,4351.6,0.3191]
[1757399560640,1.35911489,4352.0,4351.6,0.3191]
[1757399560641,1.74761489,4351.7,4351.6,0.3191]
[1757399560946,1.74761489,4351.7,4351.6,0.5207]
[1757399563242,2.03227307,4351.7,4351.6,0.5207]
[1757399563442,2.25697307,4351.7,4351.6,0.3191]
[1757399563948,2.25697307,4351.7,4351.6,0.5207]
[1757399564144,2.25697307,4351.7,4351.6,0.3191]
[1757399564640,1.86407307,4351.7,4351.1,0.3191]
[1757399564946,0.234,4351.8,4351.1,0.3191]
[1757399564947,1.74781489,4351.2,4351.1,0.3191]
[1757399565844,1.74781489,4351.2,4351.1,0.5207]
[1757399566045,1.74781489,4351.2,4351.1,0.3191]
[1757399566547,2.25712516,4351.2,4351.1,0.3191]
[1757399566844,2.25712516,4351.2,4350.6,0.3148]
[1757399566845,2.03242516,4351.2,4350.6,0.3148]
[1757399567045,0.4112,4350.7,4350.6,0.94214]
[1757399567243,0.4112,4350.7,4350.6,0.7123]
[1757399568247,0.2121,4350.7,4350.6,0.7123]
[1757399568746,1.12511489,4350.9,4350.6,0.3975]
[1757399568945,1.33721489,4350.9,4350.8,0.3975]
[1757399569147,1.33721489,4350.9,4350.8,0.7123]
[1757399569647,0.2121,4350.9,4350.8,0.7123]
[1757399569945,1.33721489,4350.9,4350.8,0.7123]
[1757399571343,0.4112,4350.9,4350.8,0.7123]
[1757399571649,1.53631489,4350.9,4350.8,0.7123]
[1757399573038,1.76081489,4350.9,4350.8,0.7123]
[1757399575944,1.76081489,4350.9,4350.8,0.5139]
[1757399576351,0.6357,4350.9,4350.8,0.5139]
[1757399576549,0.4112,4350.9,4350.8,0.5139]
[1757399576954,0.6357,4350.9,4350.8,0.5139]
[1757399578553,0.4112,4350.9,4350.8,0.5139]
[1757399579050,0.6357,4350.9,4350.8,0.5139]
[1757399579654,0.6357,4350.9,4350.8,0.3148]
[1757399579861,1.14480923,4350.9,4350.8,0.3148]
[1757399582848,0.2245,4350.8,4350.6,0.3148]
[1757399583053,2.4773755,4350.7,4350.6,0.3148]
[1757399583255,0.4112,4350.7,4350.6,0.7123]
[1757399583451,0.4112,4350.7,4350.6,0.3975]
[1757399583452,0.2121,4350.7,4350.6,0.3975]
[1757399584053,0.2121,4350.7,4350.6,0.7123]
[1757399584451,0.4112,4350.7,4350.6,0.7123]
[1757399584651,1.74376627,4350.7,4350.6,0.7123]
[1757399585455,1.96826627,4350.7,4350.6,0.7123]
[1757399586256,1.74376627,4350.7,4350.6,0.7123]
[1757399587649,1.96826627,4350.7,4350.6,0.7123]
[1757399587955,1.96826627,4350.7,4350.0,0.1185]
[1757399588159,1.74376627,4350.2,4350.1,0.5139]
[1757399588861,1.96826627,4350.2,4350.1,0.3148]
[1757399589257,1.96826627,4350.2,4349.5,0.1191]
[1757399589463,1.76916627,4349.8,4349.7,0.1991]
[1757399589758,1.76916627,4349.8,4349.7,0.3148]
[1757399589759,1.96826627,4349.8,4349.7,0.3148]
[1757399590358,0.4112,4349.6,4349.5,0.3148]
[1757399590555,0.6357,4349.6,4349.5,0.5139]
[1757399590760,0.4112,4349.6,4349.5,0.8402]
[1757399590962,1.33256627,4350.2,4349.6,0.3148]
[1757399591163,1.37759695,4350.1,4350.0,0.6418]
[1757399591465,2.71016322,4350.1,4350.0,0.6418]
[1757399591760,2.71016322,4350.1,4350.0,0.3148]
[1757399591961,2.47716322,4350.1,4350.0,0.3148]
[1757399592264,2.71016322,4350.1,4350.0,0.3148]
[1757399592852,2.71016322,4350.1,4349.6,0.3148]
[1757399593056,0.4112,4349.6,4349.5,0.327]
[1757399593256,1.74376627,4349.6,4349.5,0.327]
[1757399593764,1.74376627,4349.6,4349.5,0.6418]
[1757399594352,1.96826627,4349.6,4349.5,0.3148]
[1757399595462,1.96826627,4349.6,4349.5,0.5139]
[1757399595764,1.74376627,4349.6,4349.5,0.8402]
[1757399599165,0.2046,4350.1,4350.0,0.335]
[1757399599363,0.4376,4350.1,4350.0,0.5438]
[1757399599564,0.6404,4350.1,4350.0,0.5438]
[1757399599766,0.6404,4350.1,4350.0,0.8672]
[1757399600365,0.4074,4350.1,4350.0,0.8672]
[1757399601455,0.2046,4350.1,4350.0,0.8672]
[1757399602264,0.6325,4350.1,4350.0,0.4433]
[1757399602461,0.6325,4350.1,4349.6,0.3234]
[1757399602666,1.73996627,4349.7,4349.6,0.7473]
[1757399604963,1.96506627,4349.7,4349.6,0.5385]
[1757399605273,1.96506627,4349.7,4349.6,0.3234]
[1757399606775,1.96506627,4349.7,4349.6,0.5385]
[1757399606980,1.53716627,4349.7,4349.6,0.7473]
[1757399608070,1.73996627,4349.7,4349.6,0.7473]
[1757399608573,1.96506627,4349.7,4349.6,0.7473]
[1757399608971,1.73996627,4349.7,4349.6,0.7473]
[1757399610179,1.53716627,4349.7,4349.6,0.7473]
[1757399612976,1.73996627,4350.1,4350.0,0.8672]
[1757399613281,2.24886804,4350.1,4350.0,0.8672]
[1757399613578,2.47396804,4350.1,4350.0,0.8672]
[1757399614581,0.91630177,4350.1,4350.0,0.8672]
[1757399614769,0.50890177,4350.1,4350.0,0.8672]
[1757399614974,1.33256627,4350.7,4350.0,1.14757758]
[1757399615170,0.71358052,4350.6,4350.5,0.8672]
[1757399616779,1.14148052,4350.6,4350.1,0.3234]
[1757399617086,0.233,4350.8,4350.1,0.5385]
[1757399617087,1.73996627,4350.2,4350.1,0.5385]
[1757399617290,1.73996627,4350.2,4350.1,0.7473]
[1757399618485,1.33256627,4350.2,4350.1,0.7473]
[1757399618690,1.53716627,4350.6,4350.5,0.8672]
[1757399618893,2.04652701,4350.6,4350.5,0.8672]
[1757399619192,2.24932701,4350.6,4350.5,0.8672]
[1757399622593,1.33256627,4351.2,4350.5,0.8672]
[1757399622793,0.71369515,4351.1,4351.0,0.5438]
[1757399623289,0.2046,4351.1,4351.0,0.8672]
[1757399623487,1.73996627,4351.6,4351.5,0.335]
[1757399623686,0.91621618,4351.6,4351.5,0.8672]
[1757399623991,0.71341618,4351.6,4351.5,0.8672]
[1757399624190,0.2046,4351.6,4351.5,0.8672]
[1757399625088,0.233,4351.8,4351.5,0.8672]
[1757399625289,0.233,4351.8,4351.7,0.7473]
[1757399625590,0.4376,4351.9,4351.8,0.7473]
[1757399626184,0.6404,4351.9,4351.8,0.7473]
[1757399627489,0.4074,4351.9,4351.8,0.7473]
[1757399628990,0.632,4351.9,4351.8,0.5385]
[1757399629198,0.632,4351.9,4351.8,0.3234]
[1757399631297,0.632,4351.9,4351.8,0.5279]
[1757399632393,0.6404,4351.9,4351.8,0.7414]
[1757399632593,0.4074,4351.9,4351.8,0.7414]
[1757399632897,0.4376,4351.9,4351.8,0.7414]
[1757399633294,0.2046,4351.9,4351.8,0.7414]
[1757399633501,1.56556627,4352.0,4351.9,0.3236]
[1757399633699,1.56556627,4352.0,4351.9,0.7416]
[1757399634091,1.77256627,4352.0,4351.9,0.7416]
[1757399634797,1.53956627,4352.0,4351.9,0.7416]
[1757399634998,1.77256627,4352.0,4351.9,0.7416]
[1757399635898,1.97646627,4352.0,4351.9,0.7416]
[1757399636401,2.20106627,4352.0,4351.9,0.7416]
[1757399636698,1.97646627,4352.0,4351.9,0.7416]
[1757399636996,33.123,4352.4,4352.0,0.866]
[1757399637199,0.207,4352.3,4352.2,0.7416]
[1757399637602,0.44,4352.3,4352.2,0.7416]
[1757399638304,1.56453169,4352.3,4352.2,0.7416]
[1757399639103,1.33153169,4352.3,4352.2,0.7416]
[1757399639304,1.56453169,4352.3,4352.2,0.7416]
[1757399640005,1.76843169,4352.3,4352.2,0.7416]
[1757399642106,1.56453169,4352.3,4352.2,0.7416]
[1757399642500,1.33153169,4352.3,4352.2,0.7416]
[1757399642706,1.12453169,4352.3,4352.2,0.7416]
[1757399643007,1.33153169,4352.3,4352.2,0.7416]
[1757399643497,1.53543169,4352.3,4352.2,0.7416]
[1757399645302,1.76003169,4352.3,4352.2,0.5281]
[1757399646105,1.76003169,4352.3,4352.2,0.3236]
[1757399648507,1.76003169,4352.3,4352.2,0.5281]
[1757399649915,1.53543169,4352.3,4352.2,0.7416]
[1757399652211,2.04434512,4352.3,4352.2,0.7416]
[1757399652922,2.26894512,4352.3,4352.2,0.7416]
[1757399654816,2.26894512,4352.3,4352.2,0.5281]
[1757399655524,2.04434512,4352.3,4352.2,0.7416]
[1757399657720,0.50891343,4352.3,4352.2,0.7416]
[1757399657923,1.12453169,4353.0,4352.9,0.4065]
[1757399657924,1.32383169,4353.0,4352.9,0.4065]
[1757399658122,1.83290651,4353.0,4352.9,0.711]
[1757399660425,1.63106825,4354.9,4353.2,2.301]
[1757399660718,0.2929,4356.4,4355.2,0.41326]
[1757399660920,0.2929,4356.4,4356.0,1.12453169]
[1757399661119,0.1241,4356.5,4356.1,1.21380472]
[1757399661325,0.6163,4356.5,4356.2,0.60431934]
[1757399661525,0.2929,4356.4,4356.1,0.60431934]
[1757399661726,0.2929,4356.4,4356.2,0.3079768]
[1757399661922,0.2929,4356.4,4356.3,0.3079768]
[1757399662124,0.1241,4356.5,4356.3,0.3079768]
[1757399662327,0.2929,4356.9,4356.4,0.3079768]
[1757399662528,0.4922,4356.9,4356.5,0.3079768]
[1757399662718,0.4922,4356.9,4356.6,0.3079768]
[1757399662922,0.4922,4356.9,4356.1,0.60431934]
[1757399662923,0.4009,4356.7,4355.9,0.60431934]
[1757399663124,0.2929,4356.4,4356.0,0.64638393]
[1757399663429,0.2929,4356.4,4356.1,0.64638393]
[1757399663635,0.1241,4356.5,4356.2,0.64638393]
[1757399663928,0.2929,4356.4,4356.3,0.64529776]
[1757399664122,0.417,4357.0,4356.3,0.64529776]
[1757399664333,0.417,4356.5,4356.4,0.64529776]
[1757399664921,0.8179,4356.5,4356.4,0.64529776]
[1757399667719,0.8179,4356.5,4356.4,0.31165307]
[1757399667924,0.8179,4356.5,4355.9,1.36553169]
[1757399668126,0.1993,4356.4,4356.0,0.61681659]
[1757399668427,0.2929,4356.4,4356.1,0.61681659]
[1757399668625,0.2929,4356.4,4356.2,0.31052844]
[1757399668831,0.2929,4356.4,4356.3,0.31052844]
[1757399669332,0.2929,4356.4,4355.9,0.241]
[1757399669524,0.1993,4356.1,4356.0,0.616179]
[1757399669724,0.4922,4356.1,4356.0,0.616179]
[1757399670321,0.4922,4356.1,4356.0,0.31020742]
[1757399670527,0.417,4356.0,4355.9,0.241]
[1757399670831,0.417,4356.0,4355.9,0.55119146]
[1757399671230,0.417,4356.0,4355.9,0.241]
[1757399671531,0.6163,4356.0,4355.9,1.36553169]
[1757399672035,0.2929,4355.9,4355.2,33.106]
[1757399672233,0.1241,4355.5,4355.4,1.12453169]
[1757399672429,0.417,4355.5,4355.4,1.74055429]
[1757399673338,0.6163,4356.0,4355.4,5.74055429]
[1757399673531,0.4922,4355.9,4355.8,1.12453169]
[1757399673831,0.6938,4355.9,4355.8,1.12453169]
[1757399674036,0.6938,4355.8,4355.7,1.12453169]
[1757399674234,1.03245564,4355.8,4355.7,1.12453169]
[1757399675229,1.03245564,4355.8,4355.7,1.4303615]
[1757399675533,0.2929,4355.8,4355.7,1.12453169]
[1757399677137,0.4922,4355.8,4355.7,1.12453169]
[1757399677537,0.3234,4355.5,4355.4,1.12453169]
[1757399677742,0.6163,4355.5,4355.4,1.98061794]
[1757399678038,0.417,4355.5,4355.4,1.98061794]
[1757399679231,0.417,4355.5,4355.4,1.74061794]
[1757399679432,0.417,4355.5,4355.4,1.98061794]
[1757399679634,0.1241,4356.0,4355.4,2.39382794]
[1757399679635,0.2929,4355.9,4355.4,2.39382794]
[1757399679831,0.2929,4355.9,4355.8,1.12453169]
[1757399679832,0.33865564,4355.9,4355.8,1.12453169]
[1757399680033,0.1241,4356.0,4355.8,1.12453169]
[1757399680232,0.95495564,4356.0,4355.9,0.24]
[1757399682041,1.15655564,4356.0,4355.9,0.24]
[1757399682343,1.15655564,4356.0,4355.9,0.5507505]
[1757399682838,1.15655564,4356.0,4355.9,1.67528219]
[1757399683040,0.95495564,4356.0,4355.9,1.67528219]
[1757399683234,0.417,4356.0,4355.9,1.67528219]
[1757399683429,0.1241,4356.5,4355.9,1.9686424]
[1757399683430,0.2929,4356.4,4355.9,1.9686424]
[1757399683634,0.63155564,4356.4,4356.3,1.12453169]
[1757399684242,0.63155564,4356.4,4356.3,1.4357568]
[1757399684632,0.2929,4356.4,4356.3,1.4357568]
[1757399685335,0.2929,4356.4,4356.3,1.72959272]
[1757399689438,0.2929,4356.4,4356.3,2.53888958]
[1757399689845,0.2929,4356.4,4356.3,2.24505366]
[1757399690147,0.4933,4356.4,4356.3,1.04829686]
[1757399690348,0.2004,4356.4,4356.1,1.61840629]
[1757399690553,0.2004,4356.4,4356.3,1.12453169]
[1757399690846,0.4081,4356.4,4356.3,1.12453169]
[1757399691048,0.7098,4356.4,4356.3,1.12453169]
[1757399691746,0.5021,4356.4,4356.3,1.12453169]
[1757399692141,0.3017,4356.3,4356.2,0.239]
[1757399692336,0.3017,4356.3,4356.2,1.36353169]
[1757399692542,0.3017,4356.1,4356.0,1.61840629]
[1757399692849,0.5021,4356.1,4356.0,1.85740629]
[1757399693050,0.3245,4356.5,4356.0,1.85740629]
[1757399693349,0.3017,4356.2,4356.0,1.85740629]
[1757399693543,0.33865564,4356.3,4356.0,1.85740629]
[1757399693544,0.3017,4356.1,4356.0,1.85740629]
[1757399694253,0.33865564,4356.3,4356.1,0.41318]
[1757399694550,0.3245,4356.5,4356.2,0.41316]
[1757399694746,0.3017,4356.4,4356.2,0.41316]
[1757399694946,0.3245,4356.5,4356.2,0.41316]
[1757399695148,0.3017,4356.4,4356.2,0.41316]
[1757399695547,0.3017,4356.4,4356.3,1.12453169]
[1757399697851,0.3017,4356.4,4356.3,1.36353169]
[1757399698041,0.1241,4356.5,4356.4,0.41315]
[1757399698246,0.3017,4356.3,4356.2,1.85740629]
[1757399698458,0.7098,4356.3,4356.2,0.239]
[1757399698647,0.3017,4356.3,4356.2,0.239]
[1757399700953,0.3017,4356.3,4356.2,1.85740629]
[1757399701148,0.3017,4356.3,4356.2,0.239]
[1757399701547,0.5021,4356.3,4356.2,0.239]
[1757399703058,0.7098,4356.3,4356.2,0.239]
[1757399703560,0.7098,4356.2,4356.1,2.94739961]
[1757399703859,0.7098,4356.2,4356.1,1.56699332]
[1757399704047,0.7098,4356.2,4356.0,1.61840629]
[1757399704250,0.5021,4356.2,4356.1,1.56699332]
[1757399704459,0.3017,4356.2,4356.1,1.56699332]
[1757399705156,0.5021,4356.2,4356.1,1.56699332]
[1757399705856,0.3017,4356.2,4356.1,1.56699332]
[1757399706258,0.3017,4356.2,4356.1,3.18653099]
[1757399706453,0.3017,4356.2,4356.1,1.56699332]
[1757399707248,0.899,4357.4,4356.1,1.56699332]
[1757399707249,0.3017,4357.3,4356.5,0.2121]
[1757399707453,0.7098,4357.3,4357.2,0.4163]
[1757399707660,0.7098,4357.3,4357.2,0.6543]
[1757399708756,0.7098,4357.3,4357.2,0.4443]
[1757399710252,0.7098,4357.3,4357.2,1.25316377]
[1757399710454,0.7098,4357.3,4357.2,0.4443]
[1757399711160,0.7098,4357.3,4357.2,1.2531655]
[1757399711370,0.7098,4357.3,4357.0,1.21410831]
[1757399711551,0.7098,4357.3,4357.2,1.04696631]
[1757399711756,0.7098,4357.3,4357.2,0.238]
[1757399711959,0.7098,4357.3,4357.2,0.84482879]
[1757399712457,0.7098,4357.3,4357.1,0.238]
[1757399713152,0.4081,4357.3,4357.1,1.04696631]
[1757399713355,0.7098,4357.2,4357.1,1.04696631]
[1757399713754,0.7098,4357.2,4357.1,1.25326631]
[1757399713964,0.7098,4357.2,4357.1,0.2063]
[1757399714857,0.7098,4357.2,4357.1,1.63040831]
[1757399715058,0.7098,4357.2,4357.1,0.4163]
[1757399715259,0.7098,4357.2,4357.1,0.6284]
[1757399715758,0.7098,4357.2,4357.1,1.84190935]
[1757399716162,0.7098,4357.2,4357.1,0.4163]
[1757399716559,0.7098,4357.2,4357.1,0.6274]
[1757399716761,0.7098,4357.2,4357.1,1.62946221]
[1757399720757,1.23778491,4359.3,4357.3,0.6283]
[1757399721069,0.5811,4358.9,4358.8,0.4172]
[1757399721269,0.5811,4358.9,4358.8,0.7269]
[1757399721566,0.5811,4358.9,4358.6,1.04486942]
[1757399722268,0.5811,4358.9,4358.8,0.60488583]
[1757399722966,0.5811,4358.9,4358.5,0.46921378]
[1757399722967,0.1982,4358.6,4358.5,0.46921378]
[1757399723161,0.151,4358.6,4358.5,0.6387]
[1757399723563,0.0472,4358.5,4358.1,0.3097]
[1757399723764,0.0755,4358.6,4358.5,0.126]
[1757399724066,0.0755,4358.6,4358.5,0.8529]
[1757399724266,0.17,4358.9,4358.6,0.3097]
[1757399724562,0.321,4358.9,4358.8,0.7269]
[1757399725169,0.321,4358.9,4358.8,0.5127]
[1757399727873,0.17,4358.9,4358.8,2.05589332]
[1757399728081,0.0472,4360.4,4359.0,0.126]
[1757399728274,0.0755,4359.2,4359.1,0.7269]
[1757399728676,0.0472,4359.8,4359.1,0.4172]
[1757399728871,0.0472,4361.4,4359.8,0.3097]
[1757399729174,1.32899332,4361.3,4359.9,0.3097]
[1757399729374,1.55832332,4361.3,4360.0,0.126]
[1757399729570,0.22932001,4361.2,4360.1,0.3097]
[1757399729881,0.0472,4361.1,4360.1,0.3097]
[1757399730080,0.27652001,4361.1,4360.1,0.3097]
[1757399730373,0.0755,4360.2,4360.1,0.5127]
[1757399730574,0.0472,4361.0,4360.2,0.3097]
[1757399731167,0.0755,4360.3,4360.2,0.7269]
[1757399731782,0.0755,4360.4,4360.3,0.5127]
[1757399731970,0.151,4360.4,4360.3,0.5127]
[1757399732171,0.1982,4359.6,4359.2,0.3097]
[1757399732478,0.1982,4359.6,4358.8,1.21180413]
[1757399732479,0.151,4359.2,4359.1,0.3097]
[1757399732873,0.151,4359.2,4359.1,0.5127]
[1757399733481,0.151,4359.2,4359.1,0.7269]
[1757399735274,0.1984,4359.2,4359.1,0.3097]
[1757399735581,0.151,4359.2,4359.1,0.3097]
[1757399735781,0.151,4359.2,4359.1,0.5127]
[1757399737182,0.151,4359.2,4359.1,0.7269]
[1757399737876,0.0755,4359.2,4359.1,0.7269]
[1757399738079,40.8,4361.4,4359.2,0.3097]
[1757399738080,1.37639332,4360.0,4359.2,0.3097]
[1757399738280,0.0758,4359.3,4359.2,0.7269]
[1757399738881,0.1516,4359.3,4359.2,0.7269]
[1757399739283,0.1516,4359.3,4359.2,0.5127]
[1757399740786,0.1516,4359.1,4359.0,0.4357]
[1757399741083,1.48059332,4359.1,4359.0,0.6387]
[1757399741279,1.40479332,4359.5,4359.4,0.4172]
[1757399741481,1.40479332,4359.5,4359.4,0.7269]
[1757399741482,0.0758,4359.5,4359.4,0.7269]
[1757399741686,0.1518,4359.5,4359.4,0.7269]
[1757399742687,0.0758,4359.5,4359.4,0.7269]
[1757399742983,0.076,4359.9,4359.8,0.7269]
[1757399744785,0.076,4360.1,4360.0,0.8529]
[1757399745389,0.152,4360.1,4360.0,0.8529]
[1757399745888,1.48099332,4360.6,4360.5,0.6387]
[1757399746779,1.52839332,4360.6,4360.5,0.4357]
[1757399748388,0.0474,4360.5,4360.1,0.304]
[1757399748583,1.48059332,4360.2,4360.1,0.5023]
[1757399748888,1.48059332,4360.2,4360.1,0.7045]
[1757399749679,0.0758,4360.6,4360.5,0.123]
[1757399749881,0.0758,4360.6,4360.5,0.5235]
[1757399750383,1.23778491,4361.6,4360.6,0.304]
[1757399750688,0.1516,4361.0,4360.9,0.7045]
[1757399750889,1.40479332,4361.0,4360.9,0.7045]
[1757399751086,1.48059332,4361.0,4360.9,0.7045]
[1757399751479,1.52799332,4361.0,4360.9,0.304]
[1757399751679,0.1516,4360.6,4360.5,0.3213]
[1757399751887,1.48059332,4360.6,4360.5,0.3213]
[1757399752084,1.48059332,4360.6,4360.5,0.123]
[1757399752396,1.52799332,4360.6,4360.5,0.427]
[1757399752594,1.48059332,4360.6,4360.5,0.6253]
[1757399753990,0.1516,4360.6,4360.5,0.8275]
[1757399754195,1.64179332,4361.1,4361.0,0.8275]
[1757399754490,1.48059332,4361.1,4361.0,0.8275]
[1757399755895,1.40479332,4361.1,4361.0,0.8275]
[1757399758494,1.19602502,4361.1,4361.0,0.8275]
[1757399760697,0.3886,4361.6,4361.5,0.6253]
[1757399760892,1.50882502,4361.6,4361.5,0.6253]
[1757399761092,1.27182502,4361.6,4361.5,0.6253]
[1757399761500,1.12022502,4362.4,4361.5,0.6253]
[1757399761501,1.23778491,4362.5,4361.5,0.5235]
[1757399761796,0.0758,4361.7,4361.6,0.7045]
[1757399762697,0.0474,4362.8,4361.7,0.304]
[1757399762898,1.23778491,4363.1,4361.7,0.7045]
[1757399762899,1.12022502,4361.8,4361.7,0.7045]
[1757399763900,0.1516,4362.6,4362.5,0.427]
[1757399764098,1.54912502,4362.6,4362.5,0.3954]
[1757399764397,0.2773,4363.6,4362.5,0.5235]
[1757399764599,1.12022502,4363.0,4362.5,4.5235]
[1757399764799,1.12022502,4362.7,4362.5,0.5235]
[1757399764999,0.2773,4363.6,4362.5,0.5235]
[1757399765201,1.12022502,4362.8,4362.5,0.5235]
[1757399766204,0.4133,4362.8,4362.7,0.7045]
[1757399766399,1.53352502,4362.8,4362.7,0.7045]
[1757399767302,1.32972502,4362.8,4362.7,0.7045]
[1757399767895,1.12022502,4362.8,4362.7,0.7045]
[1757399768095,0.2773,4363.4,4362.7,0.7045]
[1757399768305,0.2095,4363.1,4363.0,0.3252]
[1757399768497,1.32972502,4363.1,4363.0,0.5235]
[1757399768897,1.32972502,4363.1,4363.0,0.8275]
[1757399769299,0.5143,4363.8,4363.0,0.8275]
[1757399769494,1.12022502,4363.1,4363.0,0.8275]
[1757399769702,1.32972502,4363.1,4363.0,0.8275]
[1757399770201,0.2095,4363.1,4363.0,0.8275]
[1757399770500,1.32972502,4363.1,4363.0,0.8275]
[1757399772100,1.53352502,4363.1,4363.0,0.8275]
[1757399773598,0.2773,4363.7,4363.0,0.5235]
[1757399773804,1.12022502,4363.2,4363.1,0.7045]
[1757399774307,1.32972502,4363.2,4363.1,0.7045]
[1757399775501,0.2095,4363.2,4363.1,0.7045]
[1757399775700,1.32972502,4363.2,4363.1,0.7045]
[1757399776197,0.2773,4363.7,4363.1,0.4746]
[1757399776401,0.488,4363.7,4363.6,0.4079]
[1757399776604,1.82172502,4363.7,4363.6,0.4079]
[1757399777905,1.82172502,4363.7,4363.0,0.123]
[1757399778102,1.62812502,4363.2,4363.1,0.4079]
[1757399778304,0.5079,4363.2,4363.1,0.7237]
[1757399778803,0.2107,4363.2,4363.1,0.7237]
[1757399779001,1.33092502,4363.3,4363.2,0.3158]
[1757399779204,1.33092502,4363.3,4363.2,0.7237]
[1757399779504,1.84162502,4363.6,4363.5,0.8417]
[1757399780003,1.84162502,4363.6,4363.5,0.7237]
[1757399780206,0.7214,4363.6,4363.5,0.7237]
[1757399780505,0.7214,4363.6,4363.5,0.8417]
[1757399780703,1.84162502,4363.6,4363.5,0.8417]
[1757399781308,0.4242,4363.6,4363.5,0.8417]
[1757399781702,0.7214,4363.6,4363.5,0.8417]
[1757399782103,0.7214,4363.6,4363.5,0.7237]
[1757399782500,0.7214,4363.6,4363.0,0.123]
[1757399782807,0.7214,4363.2,4363.1,0.7237]
[1757399783803,0.2972,4363.9,4363.1,0.4079]
[1757399784002,0.2972,4363.7,4363.6,0.1968]
[1757399784311,0.2107,4363.7,4363.6,0.7237]
[1757399784506,0.2972,4364.0,4363.7,0.3158]
[1757399784703,0.4242,4364.0,4363.9,0.7237]
[1757399785605,1.84162502,4364.0,4363.9,0.7237]
[1757399786007,0.7214,4364.0,4363.9,0.7237]
[1757399786508,0.4242,4364.0,4363.9,0.7237]
[1757399786704,0.4242,4364.0,4363.5,0.118]
[1757399786705,0.2107,4363.9,4363.8,0.1968]
[1757399786909,0.2107,4363.9,4363.8,0.7237]
[1757399788205,0.7214,4363.9,4363.8,0.7237]
[1757399788405,0.4242,4363.9,4363.8,0.7237]
[1757399790008,0.7214,4363.9,4363.8,0.7237]
[1757399790205,0.4242,4363.9,4363.8,0.7237]
[1757399791308,0.7214,4363.9,4363.8,0.7237]
[1757399792606,0.7214,4363.9,4363.8,0.5126]
[1757399793515,0.7214,4363.9,4363.6,0.3158]
[1757399793713,0.4242,4363.7,4363.6,0.7237]
[1757399794106,0.2972,4364.0,4363.7,0.3158]
[1757399794315,0.7214,4364.0,4363.9,0.7237]
[1757399795009,0.4242,4364.0,4363.9,0.7237]
[1757399795211,0.2107,4364.0,4363.9,0.7237]
[1757399795514,0.7214,4364.4,4364.3,0.7237]
[1757399796818,0.7214,4364.4,4364.3,0.5126]
[1757399797711,0.7214,4364.4,4364.3,0.1968]
[1757399798816,0.7214,4364.4,4364.3,0.5126]
[1757399800717,1.84162502,4364.4,4364.3,0.5126]
[1757399801617,0.7214,4364.4,4364.3,0.5126]
[1757399801818,1.84162502,4364.4,4364.3,0.5126]
[1757399802723,0.7214,4364.4,4364.3,0.5126]
[1757399804521,0.7214,4364.4,4364.3,0.7237]
[1757399811021,0.7214,4364.4,4364.3,0.5126]
[1757399812826,0.3104,4364.3,4363.6,0.3133]
[1757399813022,1.83352502,4364.1,4364.0,0.7255]
[1757399813222,1.83352502,4364.1,4364.0,2.8533]
[1757399813618,0.2061,4364.1,4364.0,2.8533]
[1757399815522,0.7133,4364.1,4364.0,2.8533]
[1757399816126,0.7133,4364.1,4364.0,2.7255]
[1757399817430,0.7133,4364.1,4364.0,2.3133]
[1757399818624,0.7133,4364.1,4364.0,2.0]
[1757399819325,4.7133,4364.1,4364.0,2.0]
[1757399819529,6.18022491,4364.1,4364.0,2.0]
[1757399819725,4.7133,4364.1,4364.0,2.0]
[1757399820127,4.94244,4364.1,4364.0,2.0]
[1757399820317,6.26766512,4364.1,4364.0,2.0]
[1757399820722,6.27352512,4364.1,4364.0,2.0]
[1757399821231,7.5100483,4364.1,4364.0,2.0]
[1757399821725,6.27352512,4364.1,4364.0,2.0]
[1757399821924,6.03852512,4364.1,4364.0,2.0]
[1757399822229,0.9483,4364.1,4364.0,2.7255]
[1757399822431,0.9483,4364.1,4364.0,2.8533]
[1757399822932,0.6379,4364.1,4364.0,2.8533]
[1757399823231,0.4411,4364.1,4364.0,1.8533]
[1757399823923,0.235,4364.1,4364.0,1.8533]
[1757399824326,1.44262318,4364.6,4364.5,0.54]
[1757399824526,0.4411,4364.6,4364.5,0.8533]
[1757399824832,0.9483,4364.6,4364.5,0.8533]
[1757399825331,0.9483,4364.6,4364.5,0.7255]
[1757399825525,0.9483,4364.6,4364.0,1.1278]
[1757399825732,0.7133,4364.1,4364.0,1.54]
[1757399825935,0.9483,4364.1,4364.0,1.54]
[1757399826232,0.9483,4364.1,4364.0,1.7255]
[1757399826424,0.9483,4364.1,4364.0,1.0]
[1757399827334,0.9483,4364.1,4364.0,1.7255]
[1757399827833,0.6379,4364.1,4364.0,1.8533]
[1757399828030,0.2061,4364.1,4364.0,1.8533]
[1757399828226,0.3104,4364.4,4364.0,1.8533]
[1757399828427,3.2750483,4364.7,4364.1,0.3133]
[1757399828627,1.63562512,4364.7,4364.2,0.4122]
[1757399828827,1.63562512,4364.7,4364.0,1.1278]
[1757399828828,0.7515,4364.6,4364.5,0.8533]
[1757399829033,0.9483,4364.6,4364.5,0.8533]
[1757399831637,0.6379,4364.6,4364.5,0.8533]
[1757399832140,0.4029,4364.6,4364.5,0.8533]
[1757399832337,0.6379,4364.6,4364.5,0.8533]
[1757399832533,0.2061,4365.1,4365.0,0.54]
[1757399832739,0.2061,4365.1,4365.0,0.8533]
[1757399832939,0.4411,4365.1,4365.0,0.8533]